fUSD/lending_fUSD_20250103
["ID","MTS","AMOUNT","RATE_DAILY","PERIOD"]
[347501591,1735885831895,-491.33,9.371e-05,2]
[347501592,1735885831905,-150.0,9.372e-05,2]
[347501593,1735885831914,-509.98,9.374e-05,2]
[347501594,1735885831923,-150.0,9.375e-05,2]
[347501595,1735885831933,-497.28,9.379e-05,2]
[347501596,1735885831942,-150.0,9.382e-05,2]
[347501597,1735885831951,-150.0,9.383e-05,2]
[347501598,1735885831961,-495.04,9.384e-05,2]
[347501599,1735885831970,-150.0,9.402e-05,2]
[347501600,1735885831980,-150.0,9.407e-05,2]
[347501601,1735885831990,-150.0,9.414e-05,2]
[347501602,1735885831999,-150.0,9.416e-05,2]
[347501603,1735885832008,-500.31,9.42e-05,2]
[347501604,1735885832018,-496.15,9.421e-05,2]
[347501605,1735885832028,-496.41,9.422e-05,2]
[347501606,1735885832038,-495.2,9.425e-05,2]
[347501607,1735885832048,-300.0,9.425e-05,2]
[347501608,1735885832057,-505.9,9.429e-05,2]
[347501609,1735885832066,-150.0,9.435e-05,2]
[347501610,1735885832075,-499.44,9.436e-05,2]
[347501611,1735885832084,-150.0,9.452e-05,2]
[347501612,1735885832094,-581.504,9.458e-05,2]
[347501613,1735885832103,-290.1562,9.458e-05,2]
[347501614,1735885832113,-150.0,9.459e-05,2]
[347501615,1735885832126,-150.0,9.461e-05,2]
[347501616,1735885832136,-150.0,9.472e-05,2]
[347501617,1735885832437,-150.0,9.474e-05,2]
[347501618,1735885832446,-150.38,9.492e-05,2]
[347501619,1735885832456,-499.6,9.492e-05,2]
[347501620,1735885832466,-507.09,9.492e-05,2]
[347501621,1735885832475,-494.22,9.492e-05,2]
[347501622,1735885832485,-493.18,9.492e-05,2]
[347501623,1735885832494,-3758.25,9.5e-05,2]
[347501624,1735885832503,-150.0,9.501e-05,2]
[347501625,1735885832513,-150.0,9.502e-05,2]
[347501626,1735885832522,-150.0,9.503e-05,2]
[347501627,1735885832531,-150.0,9.507e-05,2]
[347501628,1735885832541,-150.0,9.508e-05,2]
[347501629,1735885832550,-150.0,9.513e-05,2]
[347501630,1735885832560,-150.0,9.517e-05,2]
[347501631,1735885832569,-400.82,9.53e-05,2]
[347501632,1735885832579,-503.4,9.53e-05,2]
[347501633,1735885832589,-500.97503271,9.533e-05,2]
[347501634,1735885832599,-501.10845411,9.533e-05,2]
[347501635,1735885832608,-302.63998055,9.533e-05,2]
[347501636,1735885832617,-500.0,9.533e-05,2]
[347501637,1735885832627,-500.18752387,9.533e-05,2]
[347501638,1735885832637,-51952.92581463,9.534e-05,2]
[347501639,1735885833398,-22972.58797793,9.534e-05,2]
[347501640,1735885833527,-20323.06192818,9.534e-05,2]
[347501641,1735885833537,-3494.0,9.534e-05,2]
[347501642,1735885833547,-2500.0,9.534e-05,2]
[347501643,1735885833557,-292.0,9.534e-05,2]
[347501644,1735885833566,-1000.0,9.536e-05,2]
[347501645,1735885833576,-150.0,9.537e-05,2]
[347501646,1735885833586,-150.0,9.546e-05,2]
[347501647,1735885833596,-150.0,9.553e-05,2]
[347501648,1735885833605,-1545.12,9.555e-05,2]
[347501649,1735885833615,-8812.15,9.555e-05,2]
[347501650,1735885833624,-4556.31,9.555e-05,2]
[347501651,1735885833634,-2635.11508225,9.555e-05,2]
[347501679,1735885837670,-5488.88491775,9.555e-05,2]
[347501680,1735885837679,-1550.88,9.555e-05,2]
[347501681,1735885837690,-2730.5164982,9.555e-05,2]
[347501682,1735885837835,-8926.61547988,9.555e-05,2]
[347501683,1735885837929,-18128.11802192,9.555e-05,2]
[347501684,1735885837939,-3984.91,9.555e-05,2]
[347501685,1735885837948,-552.9,9.555e-05,2]
[347501686,1735885837958,-5529.54060052,9.555e-05,2]
[347501687,1735885838027,-1190.22172726,9.555e-05,2]
[347501694,1735885840081,-150.0,9.527e-05,2]
[347501696,1735885840093,-150.0,9.55e-05,2]
[347501698,1735885840107,-506.34000009,9.555e-05,2]
[347501708,1735885840190,-265.18767213,9.555e-05,2]
[347501710,1735885840204,-92.61976406,9.555e-05,2]
[347501790,1735885843088,-612.02336585,9.555e-05,2]
[347501796,1735885843188,-2772.33687009,9.555e-05,2]
[347501798,1735885843198,-8323.76,9.555e-05,2]
[347501800,1735885843208,-3423.75,9.555e-05,2]
[347501802,1735885843218,-5522.87812991,9.555e-05,2]
[347501841,1735885845760,-265.83010143,9.555e-05,2]
[347501842,1735885845773,-5157.8190213,9.555e-05,2]
[347501843,1735885845785,-743.3523116,9.555e-05,2]
[347501844,1735885845859,-250.49043576,9.555e-05,2]
[347501845,1735885845870,-760.50956424,9.555e-05,2]
[347501846,1735885845882,-4901.10043576,9.555e-05,2]
[347501847,1735885845892,-2584.01,9.555e-05,2]
[347501848,1735885845902,-1846.33,9.555e-05,2]
[347501849,1735885845913,-8854.44,9.555e-05,2]
[347501850,1735885845923,-150.0,9.555e-05,2]
[347501851,1735885845932,-2006.36886405,9.555e-05,2]
[347501852,1735885845944,-279.48088524,9.555e-05,2]
[347501853,1735885845955,-133.48025071,9.555e-05,2]
[347501854,1735885845965,-581.16974929,9.555e-05,2]
[347501855,1735885845997,-532.53025071,9.555e-05,2]
[347501856,1735885846006,-4735.56,9.555e-05,2]
[347501857,1735885846016,-18335.79,9.555e-05,2]
[347501858,1735885846025,-773.75,9.555e-05,2]
[347501859,1735885846036,-1759.97,9.555e-05,2]
[347501860,1735885846045,-721.99,9.555e-05,2]
[347501861,1735885846054,-500.0,9.555e-05,2]
[347501862,1735885846063,-500.0,9.555e-05,2]
[347501863,1735885846073,-2385.51,9.555e-05,2]
[347501864,1735885846083,-500.0,9.555e-05,2]
[347501865,1735885846092,-4984.22,9.555e-05,2]
[347501866,1735885846102,-1286.63,9.555e-05,2]
[347501867,1735885846112,-500.0,9.555e-05,2]
[347501868,1735885846122,-621.94,9.555e-05,2]
[347501869,1735885846135,-1100.69,9.555e-05,2]
[347501870,1735885846446,-7966.7,9.555e-05,2]
[347501871,1735885846456,-3445.71,9.555e-05,2]
[347501872,1735885846465,-729.82,9.555e-05,2]
[347501873,1735885846474,-881.16,9.555e-05,2]
[347501874,1735885846484,-500.0,9.555e-05,2]
[347501875,1735885846493,-1764.8,9.555e-05,2]
[347501876,1735885846502,-3423.31,9.555e-05,2]
[347501877,1735885846511,-1833.95,9.555e-05,2]
[347501878,1735885846521,-1222.62,9.555e-05,2]
[347501879,1735885846531,-1146.54,9.555e-05,2]
[347501880,1735885846540,-215.83026029,9.555e-05,2]
[347501881,1735885846551,-284.16973971,9.555e-05,2]
[347501882,1735885846560,-1176.04208545,9.556e-05,2]
[347501883,1735885846599,-1541.10725272,9.556e-05,2]
[347501885,1735885858623,250.0,8.685e-05,2]
[347501886,1735885917290,23900.0,8.673e-05,2]
[347501887,1735886050485,1000.0,8.674e-05,2]
[347501888,1735886260924,1440.57,8.219e-05,2]
[347501889,1735886310975,-150.0,9.322e-05,2]
[347501890,1735886394719,1090.0,8.512e-05,2]
[347501891,1735886394754,910.0,8.512e-05,2]
[347501892,1735886669281,217.61,8.5e-05,2]
[347501893,1735886711435,150.0,8.581e-05,2]
[347501894,1735886711486,700.0,8.22e-05,2]
[347501895,1735886713932,150.0,8.581e-05,2]
[347501896,1735886722103,150.0,8.581e-05,2]
[347501898,1735886751765,500.0,8.22e-05,2]
[347501899,1735886776770,2200.0,8.22e-05,2]
[347501900,1735886844232,23900.0,8.502e-05,2]
[347501901,1735886873141,250.0,8.502e-05,2]
[347501903,1735886952124,1000.0,8.502e-05,2]
[347501904,1735886964657,95258.1972689,9e-05,3]
[347501922,1735887031999,-259.655,9.11e-05,2]
[347501923,1735887032008,-150.0,9.326e-05,2]
[347501924,1735887032018,-150.0,9.327e-05,2]
[347501925,1735887032027,-78.14499985,9.328e-05,2]
[347501926,1735887032039,-414.43195174,9.328e-05,2]
[347501932,1735887032479,-1007.42304841,9.328e-05,2]
[347501934,1735887032488,-150.0,9.342e-05,2]
[347501936,1735887032498,-150.0,9.359e-05,2]
[347501938,1735887032506,-150.0,9.361e-05,2]
[347501940,1735887032515,-150.0,9.385e-05,2]
[347501942,1735887032524,-185.06910155,9.389e-05,2]
[347501944,1735887032533,-150.0,9.407e-05,2]
[347501946,1735887032542,-150.0,9.421e-05,2]
[347501948,1735887032551,-150.0,9.429e-05,2]
[347501950,1735887032560,-150.0,9.443e-05,2]
[347501952,1735887032569,-150.0,9.45e-05,2]
[347501954,1735887032578,-150.0,9.452e-05,2]
[347501956,1735887032586,-300.0,9.46e-05,2]
[347501958,1735887032595,-150.0,9.464e-05,2]
[347501960,1735887032604,-1011.33712355,9.484e-05,2]
[347502040,1735887037799,-488.66287645,9.484e-05,2]
[347502041,1735887037808,-11.33712355,9.498e-05,2]
[347502042,1735887037830,-138.66287645,9.498e-05,2]
[347502043,1735887037840,-301.09446566,9.5e-05,2]
[347502044,1735887037852,-703.90553434,9.5e-05,2]
[347502045,1735887037861,-150.0,9.502e-05,2]
[347502046,1735887037871,-150.0,9.503e-05,2]
[347502047,1735887037880,-150.0,9.529e-05,2]
[347502048,1735887037889,-150.0,9.532e-05,2]
[347502049,1735887037898,-500.91326825,9.533e-05,2]
[347502050,1735887037910,-300.0,9.533e-05,2]
[347502051,1735887037920,-150.0,9.534e-05,2]
[347502052,1735887037929,-150.0,9.534e-05,2]
[347502053,1735887037939,-150.0,9.534e-05,2]
[347502054,1735887037950,-150.0,9.534e-05,2]
[347502055,1735887037959,-477.99051192,9.552e-05,2]
[347502056,1735887037970,-3165.67383497,9.552e-05,2]
[347502057,1735887038008,-4916.29772784,9.552e-05,2]
[347502058,1735887038020,-4479.49276597,9.552e-05,2]
[347502059,1735887038029,-500.0,9.552e-05,2]
[347502060,1735887038039,-4869.3104298,9.552e-05,2]
[347502061,1735887038048,-506.63,9.552e-05,2]
[347502062,1735887038058,-496.08,9.552e-05,2]
[347502063,1735887038068,-507.66,9.552e-05,2]
[347502064,1735887038077,-268.47480348,9.552e-05,2]
[347502072,1735887038190,-226.91519652,9.552e-05,2]
[347502074,1735887038202,-137.41595657,9.552e-05,2]
[347502077,1735887038214,-363.63404343,9.552e-05,2]
[347502079,1735887038223,-491.57,9.552e-05,2]
[347502081,1735887038232,-508.7,9.552e-05,2]
[347502083,1735887038242,-500.0,9.553e-05,2]
[347502085,1735887038251,-500.0,9.553e-05,2]
[347502087,1735887038261,-1054.83,9.553e-05,2]
[347502089,1735887038270,-1171.68,9.553e-05,2]
[347502091,1735887038280,-616.86,9.553e-05,2]
[347502093,1735887038289,-1894.46,9.553e-05,2]
[347502095,1735887038298,-500.0,9.553e-05,2]
[347502098,1735887038307,-1691.27,9.553e-05,2]
[347502101,1735887038316,-500.0,9.553e-05,2]
[347502103,1735887038326,-37.09449967,9.553e-05,2]
[347502116,1735887040031,-307.5983704,9.553e-05,2]
[347502120,1735887040266,-155.30712993,9.553e-05,2]
[347502122,1735887040275,-500.0,9.553e-05,2]
[347502124,1735887040285,-500.0,9.553e-05,2]
[347502125,1735887040294,-500.0,9.553e-05,2]
[347502126,1735887040304,-500.0,9.553e-05,2]
[347502127,1735887040313,-500.0,9.553e-05,2]
[347502128,1735887040323,-500.0,9.553e-05,2]
[347502129,1735887040332,-500.0,9.553e-05,2]
[347502130,1735887040341,-658.70299027,9.553e-05,2]
[347502131,1735887040352,-197.53700973,9.553e-05,2]
[347502132,1735887040361,-82.77401529,9.553e-05,2]
[347502133,1735887040372,-417.22598471,9.553e-05,2]
[347502134,1735887040382,-500.0,9.553e-05,2]
[347502135,1735887040392,-1294.94,9.553e-05,2]
[347502136,1735887040401,-500.0,9.553e-05,2]
[347502137,1735887040410,-1212.22,9.553e-05,2]
[347502138,1735887040419,-500.0,9.553e-05,2]
[347502139,1735887040429,-504.1,9.553e-05,2]
[347502140,1735887040438,-500.0,9.553e-05,2]
[347502141,1735887040449,-500.0,9.553e-05,2]
[347502142,1735887040459,-1285.71,9.553e-05,2]
[347502143,1735887040469,-500.0,9.553e-05,2]
[347502144,1735887040479,-546.56901685,9.553e-05,2]
[347502145,1735887040488,-500.0,9.553e-05,2]
[347502146,1735887040497,-500.0,9.553e-05,2]
[347502147,1735887040507,-1361.74,9.553e-05,2]
[347502148,1735887040517,-500.0,9.553e-05,2]
[347502149,1735887040526,-890.24,9.553e-05,2]
[347502150,1735887040536,-1288.14,9.553e-05,2]
[347502151,1735887040545,-605.03583834,9.553e-05,2]
[347502152,1735887040556,-537.91,9.553e-05,2]
[347502153,1735887040565,-500.0,9.553e-05,2]
[347502154,1735887040574,-500.0,9.553e-05,2]
[347502155,1735887040584,-1270.15,9.553e-05,2]
[347502156,1735887040593,-500.0,9.553e-05,2]
[347502157,1735887040603,-500.0,9.553e-05,2]
[347502158,1735887040613,-1593.48,9.553e-05,2]
[347502159,1735887040622,-2311.77,9.553e-05,2]
[347502160,1735887040632,-752.68,9.553e-05,2]
[347502161,1735887040641,-500.0,9.553e-05,2]
[347502162,1735887040651,-500.0,9.553e-05,2]
[347502163,1735887040661,-7634.76,9.553e-05,2]
[347502164,1735887040671,-500.0,9.553e-05,2]
[347502165,1735887040681,-500.0,9.553e-05,2]
[347502166,1735887040691,-500.0,9.553e-05,2]
[347502167,1735887040702,-500.0,9.553e-05,2]
[347502168,1735887040712,-500.0,9.553e-05,2]
[347502169,1735887040721,-500.0,9.553e-05,2]
[347502170,1735887040731,-815.22,9.553e-05,2]
[347502171,1735887040740,-845.86,9.553e-05,2]
[347502172,1735887040750,-500.0,9.553e-05,2]
[347502173,1735887040764,-500.0,9.553e-05,2]
[347502174,1735887040774,-3004.55,9.553e-05,2]
[347502175,1735887040784,-786.82,9.553e-05,2]
[347502176,1735887040793,-500.0,9.553e-05,2]
[347502177,1735887040803,-489.4972686,9.553e-05,2]
[347502178,1735887040812,-500.0,9.553e-05,2]
[347502179,1735887040822,-2547.53774447,9.553e-05,2]
[347502180,1735887042984,-266.94263153,9.553e-05,2]
[347502181,1735887043282,-5630.499624,9.553e-05,2]
[347502182,1735887043291,-500.0,9.553e-05,2]
[347502183,1735887043300,-500.0,9.553e-05,2]
[347502184,1735887043310,-927.0,9.553e-05,2]
[347502186,1735887043319,-500.0,9.553e-05,2]
[347502188,1735887043329,-1783.53,9.553e-05,2]
[347502190,1735887043338,-4366.46,9.553e-05,2]
[347502192,1735887043347,-500.0,9.553e-05,2]
[347502194,1735887043356,-500.0,9.553e-05,2]
[347502196,1735887043367,-920.77,9.553e-05,2]
[347502198,1735887043376,-500.0,9.553e-05,2]
[347502200,1735887043389,-7785.5,9.553e-05,2]
[347502202,1735887043398,-500.0,9.553e-05,2]
[347502204,1735887043407,-500.0,9.553e-05,2]
[347502206,1735887043417,-553.28,9.553e-05,2]
[347502209,1735887043425,-500.0,9.553e-05,2]
[347502212,1735887043434,-500.0,9.553e-05,2]
[347502215,1735887043444,-23786.83,9.553e-05,2]
[347502217,1735887043453,-500.0,9.553e-05,2]
[347502219,1735887043462,-500.0,9.553e-05,2]
[347502222,1735887043472,-500.0,9.553e-05,2]
[347502225,1735887043481,-500.0,9.553e-05,2]
[347502228,1735887043490,-500.0,9.553e-05,2]
[347502231,1735887043499,-500.0,9.553e-05,2]
[347502234,1735887043508,-500.0,9.553e-05,2]
[347502236,1735887043518,-529.86,9.553e-05,2]
[347502238,1735887043527,-578.35,9.553e-05,2]
[347502240,1735887043536,-618.22,9.553e-05,2]
[347502242,1735887043545,-508.71,9.553e-05,2]
[347502244,1735887043554,-512.91,9.553e-05,2]
[347502246,1735887043563,-1603.34,9.553e-05,2]
[347502248,1735887043572,-500.0,9.553e-05,2]
[347502250,1735887043581,-500.0,9.553e-05,2]
[347502252,1735887043590,-4785.18,9.553e-05,2]
[347502254,1735887043599,-500.0,9.553e-05,2]
[347502256,1735887043609,-1521.5,9.553e-05,2]
[347502258,1735887043618,-500.0,9.553e-05,2]
[347502259,1735887043627,-500.0,9.553e-05,2]
[347502260,1735887043636,-500.0,9.553e-05,2]
[347502261,1735887043645,-500.0,9.553e-05,2]
[347502262,1735887043655,-1969.8705095,9.553e-05,2]
[347502280,1735887043928,-850.0,0.0001,10]
[347502303,1735887044136,-152.0,0.00010761,7]
[347502370,1735887046162,-6764.1294905,9.553e-05,2]
[347502371,1735887046172,-500.0,9.553e-05,2]
[347502372,1735887046181,-500.0,9.553e-05,2]
[347502373,1735887046190,-2476.34,9.553e-05,2]
[347502374,1735887046200,-500.0,9.553e-05,2]
[347502375,1735887046209,-682.82,9.553e-05,2]
[347502376,1735887046219,-500.0,9.553e-05,2]
[347502377,1735887046228,-8485.5,9.553e-05,2]
[347502378,1735887046237,-500.0,9.553e-05,2]
[347502379,1735887046247,-13814.34,9.553e-05,2]
[347502380,1735887046256,-669.71,9.553e-05,2]
[347502381,1735887046265,-500.0,9.553e-05,2]
[347502382,1735887046275,-500.0,9.553e-05,2]
[347502383,1735887046284,-725.75,9.553e-05,2]
[347502384,1735887046294,-7333.56,9.553e-05,2]
[347502385,1735887046303,-500.0,9.553e-05,2]
[347502386,1735887046313,-2318.52,9.553e-05,2]
[347502387,1735887046322,-500.0,9.553e-05,2]
[347502388,1735887046332,-500.0,9.553e-05,2]
[347502389,1735887046342,-500.0,9.553e-05,2]
[347502390,1735887046351,-8235.49,9.553e-05,2]
[347502391,1735887046361,-1300.44,9.553e-05,2]
[347502392,1735887046370,-500.0,9.553e-05,2]
[347502393,1735887046380,-4929.91,9.553e-05,2]
[347502394,1735887046390,-17571.8,9.553e-05,2]
[347502395,1735887046399,-767.06,9.553e-05,2]
[347502396,1735887046408,-500.0,9.553e-05,2]
[347502397,1735887046417,-3374.9,9.553e-05,2]
[347502398,1735887046426,-500.0,9.553e-05,2]
[347502399,1735887046436,-500.0,9.553e-05,2]
[347502400,1735887046445,-887.45,9.553e-05,2]
[347502401,1735887046454,-944.03,9.553e-05,2]
[347502402,1735887046464,-500.0,9.553e-05,2]
[347502403,1735887046473,-2441.93,9.553e-05,2]
[347502404,1735887046483,-500.0,9.553e-05,2]
[347502405,1735887046492,-4776.54,9.553e-05,2]
[347502406,1735887046502,-500.0,9.553e-05,2]
[347502407,1735887046511,-698.01,9.553e-05,2]
[347502408,1735887046521,-1605.01,9.553e-05,2]
[347502409,1735887046530,-4515.21,9.553e-05,2]
[347502410,1735887046540,-500.0,9.553e-05,2]
[347502411,1735887046549,-679.67,9.553e-05,2]
[347502412,1735887046558,-839.07,9.553e-05,2]
[347502413,1735887046568,-500.0,9.553e-05,2]
[347502414,1735887046577,-3316.67,9.553e-05,2]
[347502415,1735887046587,-1812.55,9.553e-05,2]
[347502416,1735887046596,-1790.8,9.553e-05,2]
[347502417,1735887046605,-6951.25,9.553e-05,2]
[347502418,1735887046615,-500.0,9.553e-05,2]
[347502419,1735887046624,-1726.12,9.553e-05,2]
[347502420,1735887046634,-500.0,9.553e-05,2]
[347502421,1735887046644,-500.0,9.553e-05,2]
[347502422,1735887046654,-3905.56,9.553e-05,2]
[347502423,1735887046663,-500.0,9.553e-05,2]
[347502424,1735887046672,-8192.64,9.553e-05,2]
[347502425,1735887046681,-1067.29,9.553e-05,2]
[347502426,1735887046691,-500.0,9.553e-05,2]
[347502427,1735887046702,-3527.46,9.553e-05,2]
[347502428,1735887046711,-3378.19,9.553e-05,2]
[347502429,1735887046721,-4538.25,9.553e-05,2]
[347502430,1735887046730,-500.0,9.553e-05,2]
[347502431,1735887046740,-737.87,9.553e-05,2]
[347502432,1735887046750,-602.67,9.553e-05,2]
[347502433,1735887046759,-1098.77,9.553e-05,2]
[347502434,1735887046770,-741.51,9.553e-05,2]
[347502435,1735887046779,-500.0,9.554e-05,2]
[347502436,1735887046789,-500.0,9.554e-05,2]
[347502437,1735887046799,-500.0,9.554e-05,2]
[347502438,1735887046809,-500.0,9.554e-05,2]
[347502439,1735887046818,-266.60863658,9.554e-05,2]
[347502440,1735887046827,-500.0,9.554e-05,2]
[347502441,1735887046839,-500.0,9.554e-05,2]
[347502442,1735887046849,-500.0,9.554e-05,2]
[347502443,1735887046858,-500.0,9.554e-05,2]
[347502444,1735887046867,-500.0,9.554e-05,2]
[347502445,1735887046876,-500.0,9.554e-05,2]
[347502446,1735887046885,-1757.53,9.554e-05,2]
[347502447,1735887046894,-500.0,9.554e-05,2]
[347502448,1735887046903,-500.0,9.554e-05,2]
[347502449,1735887046912,-608.82,9.554e-05,2]
[347502450,1735887046922,-500.0,9.554e-05,2]
[347502451,1735887046930,-2849.53,9.554e-05,2]
[347502452,1735887046940,-500.0,9.554e-05,2]
[347502453,1735887046949,-500.0,9.554e-05,2]
[347502454,1735887046957,-500.0,9.554e-05,2]
[347502455,1735887046966,-500.0,9.554e-05,2]
[347502456,1735887046976,-663.57,9.554e-05,2]
[347502457,1735887046986,-1750.72,9.554e-05,2]
[347502458,1735887046995,-500.0,9.554e-05,2]
[347502459,1735887047005,-500.0,9.554e-05,2]
[347502460,1735887047014,-1261.63,9.554e-05,2]
[347502461,1735887047023,-500.0,9.554e-05,2]
[347502462,1735887047032,-3551.41,9.554e-05,2]
[347502463,1735887047042,-500.0,9.554e-05,2]
[347502464,1735887047051,-500.0,9.554e-05,2]
[347502465,1735887047061,-500.0,9.554e-05,2]
[347502466,1735887047071,-3146.19,9.554e-05,2]
[347502467,1735887047081,-500.0,9.554e-05,2]
[347502468,1735887047090,-2238.6,9.554e-05,2]
[347502469,1735887047100,-252.53393683,9.554e-05,2]
[347502470,1735887047110,-500.0,9.554e-05,2]
[347502471,1735887047120,-500.0,9.554e-05,2]
[347502472,1735887047130,-3025.36,9.554e-05,2]
[347502473,1735887047140,-2843.13,9.554e-05,2]
[347502474,1735887047149,-1904.42,9.554e-05,2]
[347502475,1735887047158,-500.0,9.554e-05,2]
[347502476,1735887047167,-326.88917734,9.554e-05,2]
[347502477,1735887047177,-1523.67,9.554e-05,2]
[347502478,1735887047186,-500.0,9.554e-05,2]
[347502479,1735887047195,-500.0,9.554e-05,2]
[347502480,1735887047205,-500.0,9.554e-05,2]
[347502481,1735887047214,-1871.15,9.554e-05,2]
[347502482,1735887047223,-1094.785982,9.554e-05,2]
[347502483,1735887047232,-264.12170454,9.554e-05,2]
[347502484,1735887123728,1404.01,8.219e-05,2]
[347502485,1735887214701,500.0,9.555e-05,7]
[347502486,1735887214974,500.0,9.829e-05,7]
[347502487,1735887215243,500.0,0.00010103,7]
[347502488,1735887215466,500.0,0.00010377,7]
[347502489,1735887624707,301.55,8.587e-05,2]
[347502490,1735887628603,256.675,9.08e-05,2]
[347502491,1735887629858,215.0,0.000101,7]
[347502492,1735887689049,215.0,0.000101,7]
[347502493,1735887790706,250.0,8.576e-05,2]
[347502495,1735887823192,253.724,9.08e-05,2]
[347502496,1735887856897,23900.0,8.571e-05,2]
[347502497,1735887902166,-1977.9441,9.452e-05,2]
[347502498,1735887902190,-1321.7928,9.452e-05,2]
[347502499,1735887902214,-14647.6995,9.452e-05,2]
[347502500,1735887902237,-1000.0,9.452e-05,2]
[347502501,1735887902264,-6395.6963,9.453e-05,2]
[347502502,1735887902288,-783.0261,9.453e-05,2]
[347502503,1735887902311,-200.0,9.458e-05,2]
[347502504,1735887902334,-980.98196319,9.463e-05,2]
[347502505,1735887902357,-980.98196319,9.463e-05,2]
[347502506,1735887902382,-20096.0,9.534e-05,2]
[347502507,1735887902409,-215.0,9.55e-05,3]
[347502508,1735887902435,-215.0,9.55e-05,4]
[347502509,1735887902457,-1557.09,9.551e-05,2]
[347502510,1735887902480,-5205.55,9.551e-05,2]
[347502511,1735887902506,-9114.29,9.551e-05,2]
[347502512,1735887902529,-14131.37,9.551e-05,2]
[347502513,1735887902552,-4682.53,9.551e-05,2]
[347502514,1735887902576,-7628.94,9.551e-05,2]
[347502515,1735887902600,-501.94,9.551e-05,2]
[347502516,1735887902627,-490.11,9.551e-05,2]
[347502517,1735887902650,-508.15,9.551e-05,2]
[347502518,1735887902674,-509.86,9.551e-05,2]
[347502519,1735887902710,-495.78,9.551e-05,2]
[347502520,1735887902744,-492.69,9.551e-05,2]
[347502521,1735887902770,-505.8,9.552e-05,2]
[347502522,1735887902794,-1946.15,9.552e-05,2]
[347502523,1735887902816,-1880.24,9.552e-05,2]
[347502524,1735887902838,-1762.17,9.552e-05,2]
[347502525,1735887902860,-1599.24,9.552e-05,2]
[347502526,1735887902883,-1422.87,9.552e-05,2]
[347502527,1735887902904,-830.6,9.552e-05,2]
[347502528,1735887902927,-1019.55,9.552e-05,2]
[347502529,1735887902951,-376.82375432,9.552e-05,2]
[347502530,1735887902975,-500.0,9.552e-05,2]
[347502531,1735887902999,-888.02,9.552e-05,2]
[347502532,1735887903021,-1883.63,9.552e-05,2]
[347502533,1735887903043,-1205.36,9.552e-05,2]
[347502534,1735887903067,-2081.29,9.552e-05,2]
[347502535,1735887903090,-2055.81,9.552e-05,2]
[347502536,1735887903113,-2160.08,9.552e-05,2]
[347502537,1735887903136,-500.0,9.552e-05,2]
[347502538,1735887903161,-235.623,9.552e-05,2]
[347502539,1735887903184,-5472.117,9.552e-05,2]
[347502540,1735887903208,-500.0,9.552e-05,2]
[347502541,1735887903231,-1159.26,9.552e-05,2]
[347502542,1735887903256,-882.83,9.552e-05,2]
[347502543,1735887903279,-3113.32,9.552e-05,2]
[347502544,1735887903302,-500.0,9.552e-05,2]
[347502545,1735887903325,-3941.12,9.552e-05,2]
[347502546,1735887903348,-500.0,9.552e-05,2]
[347502547,1735887903371,-500.0,9.552e-05,2]
[347502548,1735887903394,-2222.86,9.552e-05,2]
[347502549,1735887903416,-500.0,9.552e-05,2]
[347502550,1735887903439,-931.95,9.552e-05,2]
[347502551,1735887903461,-639.38,9.552e-05,2]
[347502552,1735887903483,-923.57,9.552e-05,2]
[347502553,1735887903507,-500.0,9.552e-05,2]
[347502554,1735887903530,-500.0,9.552e-05,2]
[347502555,1735887903554,-500.0,9.552e-05,2]
[347502556,1735887903576,-500.0,9.552e-05,2]
[347502557,1735887903599,-4032.12,9.552e-05,2]
[347502558,1735887903622,-1192.93,9.552e-05,2]
[347502559,1735887903647,-745.0,9.552e-05,2]
[347502560,1735887903671,-789.6,9.552e-05,2]
[347502561,1735887903694,-3450.33,9.552e-05,2]
[347502562,1735887903718,-1930.79,9.552e-05,2]
[347502563,1735887903742,-500.0,9.552e-05,2]
[347502564,1735887903767,-1088.07,9.552e-05,2]
[347502565,1735887903791,-500.0,9.552e-05,2]
[347502566,1735887903813,-500.0,9.552e-05,2]